{"text_format":"1","workbook":"xlsx","n_sheets":5,"sheets":["入力フォーム","申込書（金融機関等用）","申込書（勤務先用）","申込書（加入者控）","リスト"],"not_rendered":{"charts":0,"images":0,"macros":1,"external_links":0,"defined_names":3,"comments":1,"pivot_tables":0},"unopened":[],"bounds":{"document_bytes":16777216,"sheet_cells":100000,"rows_first":2000,"rows_last":500,"rows_between":2000,"halvings":0,"cell_chars":16384,"cell_head_chars":4096},"cells_cut":0,"cells_raw":0,"read":"whole","date_system":"1900"}

{"sheet":"入力フォーム","index":0,"n_rows":101,"n_cols":19,"rows_kept":101,"cut":false,"hidden":false,"merged":[[105,0,107,23],[99,8,99,19],[100,8,100,19],[102,0,104,23],[0,0,0,23],[1,0,1,23],[82,0,82,23],[2,0,2,9],[39,0,39,9],[51,0,51,9],[30,3,30,6],[8,3,8,11],[10,3,10,7],[14,3,14,6],[20,3,20,9],[26,4,26,12],[53,15,53,17],[76,0,76,9],[83,0,83,9],[28,4,28,12],[12,3,12,7],[16,3,16,19],[18,3,18,19],[42,4,42,7],[87,4,87,14],[90,4,90,14],[53,3,53,6],[57,3,57,5],[57,7,57,9],[85,3,85,9]]}
["財産形成（年金・住宅）貯蓄申込書"]
["　　　　　　　　○にはチェックを、□内には直接入力又は選択して入力し、内容を確認の上、最下部の印刷ボタンを押下してください。"]
["１～１２　全員入力必須"]
[null,null,1,"財産形成貯蓄の種類"]
[null,null,null,0]
[]
[]
[null,null,2,"取扱金融機関等"]
[]
[null,null,3,"勤務先（給与支給庁（本庁）を選択）"]
[]
[null,null,4,"生年月日"]
[]
[null,null,5,"郵便番号"]
[]
[null,null,6,"住所（漢字）"]
[]
[null,null,7,"住所（ふりがな）"]
[]
[null,null,8,"電話番号"]
[]
[null,null,9,"男女別"]
[null,null,null,0]
[]
[null,null,10,"貯蓄の種類（種別）"]
[null,null,null,"10-1","貯蓄の種類（種別）"]
[]
[null,null,null,"10-2","該当する号数　※年金・住宅のみ"]
[]
[null,null,11,"積立開始日"]
[]
[null,null,12,"積立額"]
[null,null,null,"12-1","俸給"]
[null,null,null,null,null,null,null,null,"千円"]
[null,null,null,"12-2","期末手当（６月期）"]
[null,null,null,null,null,null,null,null,"千円"]
[null,null,null,"12-3","期末手当（12月期）"]
[null,null,null,null,null,null,null,null,"千円"]
[]
["１３～１５　該当者のみ（コメント及び記入要領参照）"]
[null,null,13,"積立終了日"]
[null,null,null,"13-1","年月日"]
[]
[null,null,null,"13-2","満年齢"]
[null,null,null,null,null,"歳"]
[null,null,14,"保険期間"]
[null,null,null,null,"年"]
[null,null,15,"非課税最高限度額"]
[null,null,null,"百万",null,null,"千",null,null,"円"]
[null,null,null,null,null,null,null,null,null,null,null,null,null,null,null,null,null,null,"一般：　　　　　年金：　　　　　住宅：　　"]
[]
["１６～１９　年金のみ",null,null,null,null,null,null,null,null,null,null,null,null,null,null,null,null,null,"※19,20及び24において、選択する必要がないのにチェックを"]
[null,null,16,"支払開始日",null,null,null,null,null,null,null,null,null,null,null,null,null,null,"　入れてしまった場合は以下の方法で解除してください。"]
[null,null,null,null,null,null,null,null,null,null,null,null,null,null,null,null,null,null,"解除方法⇒"]
[null,null,17,"支払期間又は回数"]
[null,null,null,"支払開始日より",null,null,null,"年間又は",null,null,"回"]
[null,null,18,"ゆうちょ銀行の財産形成年金貯蓄の支払期間"]
[null,null,null,null,null,null,"から",null,null,null,"まで",null,"年",null,"月間"]
[null,null,19,"年金支払方法及び回数"]
[null,null,null,"19-1","支払方法"]
[null,null,null,null,0]
[]
[]
[]
[null,null,null,null,0]
[null,null,null,null,null,0]
[]
[]
[null,null,null,null,null,1]
[null,null,null,null,null,0]
[]
[null,null,null,"19-2","支払回数"]
[null,null,null,null,0]
[]
[null,null,null,null,null,null,null,null,"回",null,null,null,null,null,null,null,null,null,"年金："]
[]
["２０　住宅のみ"]
[null,null,20,"住宅資金の不足額の支払方法（複数選択可）"]
[null,null,null,0]
[null,null,null,0]
[null,null,null,0,null,null,null,null,null,null,null,null,null,null,null,null,null,null,"住宅："]
[]
["財産形成非課税（年金・住宅）貯蓄申告書"]
["２１～２４　年金・住宅のみ"]
[null,null,21,"個人番号（マイナンバー）"]
[]
[null,null,22,"非課税扱いの申告をする受入機関の営業所の所在地"]
[]
[null,null,23,"※既に非課税扱いの申告をしている最高限度額及び受入機関の営業所等"]
[null,null,null,"23-1","名称"]
[]
[null,null,null,"23-2","最高限度額"]
[null,null,null,null,"百万",null,null,"千",null,null,"円"]
[]
[null,null,24,"種別"]
[null,null,null,0]
[null,null,null,1]
[null,null,null,1]
[null,null,null,1]
[]
[null,null,null,null,null,null,null,null,"印刷前にプレビュー画面は表示しませんので、右シート等から記載内容をご確認ください。"]

{"sheet":"申込書（金融機関等用）","index":1,"n_rows":76,"n_cols":53,"rows_kept":76,"cut":false,"hidden":false,"merged":[[61,4,61,19],[52,16,53,21],[75,3,75,15],[9,26,10,27],[9,28,10,29],[53,1,54,6],[55,1,55,4],[56,1,57,4],[56,5,57,18],[55,5,55,18],[52,22,53,27],[52,8,53,15],[66,23,67,23],[66,24,67,24],[66,25,67,25],[66,26,67,26],[66,27,67,27],[66,28,67,28],[66,29,67,29],[60,4,60,19],[48,12,49,14],[47,10,49,11],[32,22,45,22],[32,1,49,1],[62,38,63,40],[74,1,74,29],[63,31,63,35],[64,31,64,35],[65,31,65,35],[66,31,66,35],[58,1,59,4],[62,1,62,4],[63,1,65,4],[66,1,67,4],[68,1,69,4],[70,1,71,4],[72,1,73,4],[64,29,65,29],[64,23,65,23],[64,24,65,24],[64,25,65,25],[64,26,65,26],[64,27,65,27],[64,28,65,28],[65,8,65,22],[63,8,63,22],[64,8,64,22],[69,31,70,35],[32,36,33,36],[47,26,49,30],[40,19,41,20],[42,19,43,20],[44,19,46,20],[32,9,32,20],[34,9,35,15],[34,16,35,16],[34,17,35,19],[34,20,35,20],[36,9,37,15],[36,16,37,16],[36,17,37,19],[34,33,35,35],[34,36,35,37],[47,2,47,9],[48,2,49,9],[48,15,49,15],[47,13,47,14],[48,16,49,16],[6,20,7,21],[15,1,16,4],[19,1,20,4],[17,1,18,8],[19,5,20,10],[40,2,46,2],[44,13,46,14],[44,15,46,16],[32,2,33,8],[34,2,35,8],[40,3,41,10],[42,3,43,10],[44,3,46,10],[42,11,43,12],[42,13,43,14],[42,15,43,16],[44,11,46,12],[40,11,41,12],[40,13,41,14],[40,15,41,16],[33,9,33,20],[6,5,7,19],[11,1,14,4],[19,11,20,11],[19,15,20,15],[9,5,10,21],[11,5,12,21],[19,16,20,19],[13,18,14,18],[13,19,14,19],[13,20,14,20],[13,5,14,11],[13,21,14,21],[13,12,14,12],[13,13,14,13],[13,14,14,14],[13,15,14,15],[13,16,14,16],[13,17,14,17],[73,5,73,7],[71,19,71,21],[73,19,73,21],[71,22,71,29],[73,22,73,29],[73,8,73,18],[72,8,72,29],[71,8,71,18],[71,42,71,45],[72,5,72,7],[71,48,71,50],[48,19,49,19],[48,18,49,18],[48,17,49,17],[48,20,49,20],[56,19,57,34],[55,19,55,34],[58,5,59,34],[54,29,54,34],[71,5,71,7],[62,30,62,35],[62,5,62,22],[65,5,65,7],[63,5,63,7],[64,5,64,7],[66,5,67,7],[68,5,68,7],[69,5,69,7],[70,5,70,7],[70,8,70,29],[68,8,68,29],[69,8,69,29],[66,8,67,22],[62,23,62,29],[58,37,58,54],[44,17,46,18],[15,27,15,34],[42,17,43,18],[9,22,10,25],[11,22,11,25],[12,22,13,25],[14,22,14,25],[15,22,18,25],[19,22,20,25],[34,38,35,42],[15,5,16,21],[17,9,18,21],[40,17,41,18],[12,26,13,48],[11,26,11,48],[9,46,10,48],[32,37,33,39],[36,20,37,20],[36,46,37,47],[38,17,39,20],[32,40,33,40],[34,28,35,32],[42,45,42,46],[43,45,43,46],[1,18,1,22],[2,18,2,22],[3,18,3,22],[1,24,2,30],[3,24,3,30],[31,8,31,21],[30,8,30,21],[5,21,5,36],[9,38,10,39],[9,40,10,41],[9,42,10,43],[9,44,10,45],[38,9,39,10],[38,12,39,16],[36,2,37,8],[38,2,39,8],[9,30,10,31],[9,32,10,33],[9,34,10,35],[9,36,10,37],[6,1,7,4],[9,1,10,4],[19,12,20,14],[9,49,9,53],[10,49,13,53],[14,26,14,53],[16,26,18,53],[6,47,7,53],[19,26,20,53],[32,41,33,53],[44,28,45,53],[34,43,35,49],[34,50,35,51],[34,52,35,53],[36,28,37,34],[36,35,37,36],[36,37,37,43],[36,44,37,45],[36,48,37,48],[36,49,37,50],[36,51,37,53],[32,23,33,27],[34,23,35,27],[36,23,37,27],[38,23,43,27],[44,23,45,27],[32,28,33,35]]}
["（国家公務員用）"]
[null,null,null,null,null,null,null,null,null,null,null,null,null,null,null,null,null,{"$f":"IF(入力フォーム!$D$5=1,\"☑\",\"□\")","v":"□"},"財  産  形  成",null,null,null,null,null,"貯蓄申込書"]
[null,null,null,null,null,null,null,null,null,null,null,null,null,null,null,null,null,{"$f":"IF(入力フォーム!$D$5=2,\"☑\",\"□\")","v":"□"},"財産形成年金"]
[null,null,null,null,null,null,null,null,null,null,null,null,null,null,null,null,null,{"$f":"IF(入力フォーム!$D$5=3,\"☑\",\"□\")","v":"□"},"財産形成住宅",null,null,null,null,null,"（兼   印   鑑   届）"]
[]
[null,null,null,null,null,null,null,null,null,null,null,null,null,null,null,null,null,null,null,null,null,{"$f":"IF(R3=\"☑\",リスト!F2,IF(R4=\"☑\",リスト!F3,\"\"))","v":""}]
[null,"取扱金融\n機 関 等",null,null,null,{"$f":"入力フォーム!D9","v":0},null,null,null,null,null,null,null,null,null,null,null,null,null,null,"御中",null,null,null,null,null,null,null,null,null,null,null,null,null,null,null,null,null,null,null,null,null,null,null,null,null,null,{"$f":"TODAY()","v":"2025-03-18"}]
[]
[]
[null,"勤  務  先",null,null,null,{"$f":"入力フォーム!D11","v":0},null,null,null,null,null,null,null,null,null,null,null,null,null,null,null,null,"職 員 番 号",null,null,null,null,null,null,null,null,null,null,null,null,null,null,null,null,null,null,null,null,null,null,null,null,null,null,"お届出印"]
[]
[null,"所属部課\n同  番  号",null,null,null,null,null,null,null,null,null,null,null,null,null,null,null,null,null,null,null,null,"ふりがな"]
[null,null,null,null,null,null,null,null,null,null,null,null,null,null,null,null,null,null,null,null,null,null,"氏　    名"]
[]
[null,null,null,null,null,null,null,null,null,null,null,null,null,null,null,null,null,null,null,null,null,null,"ふりがな",null,null,null,{"$f":"入力フォーム!D19","v":0}]
[null,"所  在  地",null,null,null,{"$f":"VLOOKUP(F10,リスト!A2:B79,2,FALSE)","v":{"$error":"#N/A"}},null,null,null,null,null,null,null,null,null,null,null,null,null,null,null,null,"住　    所",null,null,null,"(〒",{"$f":"入力フォーム!D15","v":0},null,null,null,null,null,null,null,")"]
[null,null,null,null,null,null,null,null,null,null,null,null,null,null,null,null,null,null,null,null,null,null,null,null,null,null,{"$f":"入力フォーム!D17","v":0}]
[null,"法人番号\n（年金・住宅貯蓄の場合に記入）",null,null,null,null,null,null,null,{"$f":"IF(OR(R3=\"☑\",R4=\"☑\"),VLOOKUP(F10,リスト!A1:C79,3,FALSE),\"\")","v":""}]
[]
[null,"生年月日",null,null,null,{"$f":"入力フォーム!D13","v":"00:00:00"},null,null,null,null,null,"(満",{"$f":"DATEDIF(F20,TODAY(),\"Y\")","v":125},null,null,"歳)","男女別",null,null,null,"男","女","電 話 番 号",null,null,null,{"$f":"入力フォーム!D21","v":0}]
[null,null,null,null,null,null,null,null,null,null,null,null,null,null,null,null,null,null,null,null,{"$f":"IF(入力フォーム!$D$23=1,\"☑\",\"□\")","v":"□"},{"$f":"IF(入力フォーム!$D$23=2,\"☑\",\"□\")","v":"□"}]
[null,"1. 私は、勤労者財産形成促進法第６条第１項、第２項又は第４項による貯蓄を行いたいので、貴行（社・金庫・組合）所定の財産形成貯蓄、財産形成年金貯蓄又は財産形成住宅貯蓄（以下、財産"]
[null,"形成貯蓄等という。）に関する規定及び約款に従って、下記により財産形成貯蓄等の預入等を印鑑を届出のうえ申し込みます。"]
[null,"　この貯蓄については、所属省庁が私の給与から積立額を天引きし私に代わって預入等を行います。私は、財産形成貯蓄については３年以上、財産形成年金・住宅貯蓄については５年以上積み立"]
[null,"てるとともに財産形成貯蓄については１年間払出しをいたしません。財形年金においては、原則として年金による払出しの場合に限り、また財形住宅においては原則として持家としての住宅の取"]
[null,"得等の場合に限り払出しをします。"]
[null,"　この貯蓄（元加利息を含む。）は私から特に申し出をしない限り、満期日後は引き続き貴店（移管があった場合は、移管後の店舗）において財産形成貯蓄等としてお取り扱いください。更新さ"]
[null,"れた財産形成貯蓄等の満期日後についても同様にお取り扱いください。"]
[null,"　なお、有価証券を購入する場合には、その有価証券はすべて貴行（社・金庫）に寄託するとともに大券保管されることに同意いたします。また、ゆうちょ銀行の一般財産形成貯蓄の場合、積立"]
[null,"期間が終了するまで貯金証書を保管してください。"]
[null,null,null,null,null,null,null,null,{"$f":"IF(R4=\"☑\",\"\",リスト!G2)","v":"財産形成年金貯蓄につき租特法第４条の３第１項"}]
[null,"2.私は、下記の金額の",null,null,null,null,null,null,{"$f":"IF(R3=\"☑\",\"\",リスト!G3)","v":"財産形成住宅貯蓄につき租特法第４条の２第１項"},null,null,null,null,null,null,null,null,null,null,null,null,null,null,"の規定の適用を受けたいので、この旨申し込みます。"]
[null,"共　通　申　込　事　項","貯蓄の種類（種別）",null,null,null,null,null,null,{"$f":"入力フォーム!E27","v":0},null,null,null,null,null,null,null,null,null,null,null,null,"年金の支払に関する事項","支 払 開 始 日",null,null,null,null,{"$f":"IF(入力フォーム!D54=\"\",\"\",入力フォーム!D54)","v":""},null,null,null,null,null,null,null,"(満",{"$f":"IF(AC33=\"\",\"\",DATEDIF(F20,AC33,\"Y\"))","v":""},null,null,"歳)","（６０歳以降とする）"]
[null,null,null,null,null,null,null,null,null,{"$f":"IF(OR(R3=\"☑\",R4=\"☑\"),入力フォーム!E29,\"\")","v":""}]
[null,null,"積   立   開   始   日",null,null,null,null,null,null,{"$f":"入力フォーム!D31","v":"00:00:00"},null,null,null,null,null,null,"(満",{"$f":"DATEDIF(F20,J35,\"Y\")","v":0},null,null,"歳)",null,null,"支  払  期  間",null,null,null,null,"支払開始日より",null,null,null,null,{"$f":"IF(入力フォーム!G56=\"\",\"\",入力フォーム!G56)","v":""},null,null,"年間",null,"５年以上２０年\n以内とする",null,null,null,null,"（又は支払開始日より",null,null,null,null,null,null,{"$f":"IF(入力フォーム!J56=\"\",\"\",入力フォーム!J56)","v":""},null,"回）"]
[]
[null,null,"積立終了日（年金貯蓄・積立定期預金の場合のみ）",null,null,null,null,null,null,{"$f":"IF(入力フォーム!E43=\"\",\"\",入力フォーム!E43)","v":""},null,null,null,null,null,null,"(満",{"$f":"IF(入力フォーム!E45=\"\",IF('申込書（金融機関等用）'!J37=\"\",\"\",DATEDIF(F20,J37,\"Y\")),入力フォーム!E45)","v":""},null,null,"歳)",null,null,"ゆうちょ銀行の財産形成年金貯蓄の支払期間",null,null,null,null,{"$f":"IF(入力フォーム!D58=\"\",\"\",入力フォーム!D58)","v":""},null,null,null,null,null,null,"から",null,{"$f":"IF(入力フォーム!H58=\"\",\"\",入力フォーム!H58)","v":""},null,null,null,null,null,null,"まで",null,{"$f":"IF(入力フォーム!L58=\"\",\"\",入力フォーム!L58)","v":""},null,"年",{"$f":"IF(入力フォーム!N58=\"\",\"\",入力フォーム!N58)","v":""},null,"月間"]
[]
[null,null,"保 　険　 期　 間\n（年金・損害保険の場合のみ）",null,null,null,null,null,null,{"$f":"IF(入力フォーム!D47=\"\",\"\",入力フォーム!D47)","v":""},null,null,"一般財形３年以上\n住宅貯蓄５年以上",null,null,null,null,"期間は積立開始日から開始します。",null,null,null,null,null,"年金支払方法\n及び支払回数",null,null,null,null,"支払方法",null,null,null,null,{"$f":"IF(入力フォーム!E61=1,\"☑\",\"□\")","v":"□"},"定額型",null,null,{"$f":"IF(入力フォーム!E61=2,\"☑\",\"□\")","v":"□"},"逓増型",null,null,{"$f":"IF(入力フォーム!E61=3,\"☑\",\"□\")","v":"□"},"定額逓増型（損害保険）"]
[null,null,null,null,null,null,null,null,null,null,null,"年",null,null,null,null,null,null,null,null,null,null,null,null,null,null,null,null,"(生命保険)",null,null,null,null,{"$f":"IF(入力フォーム!$E$65=1,\"☑\",\"□\")","v":"□"},"確定年金（定額型）",null,null,null,null,null,null,null,"（",{"$f":"IF(AND(入力フォーム!E65=1,入力フォーム!F66=1),\"☑\",\"□\")","v":"□"},"6年",null,{"$f":"IF(AND(入力フォーム!E65=1,入力フォーム!F66=2),\"☑\",\"□\")","v":"□"},"10年",null,{"$f":"IF(AND(入力フォーム!E65=1,入力フォーム!F66=3),\"☑\",\"□\")","v":"□"},"15年",null,"）"]
[null,null,"積立額","俸　　　　　　給",null,null,null,null,null,null,null,{"$f":"IF(入力フォーム!E34=\"\",\"\",入力フォーム!E34)","v":""},null,{"$f":"IF(入力フォーム!F34=\"\",\"\",入力フォーム!F34)","v":""},null,{"$f":"IF(入力フォーム!G34=\"\",\"\",入力フォーム!G34)","v":""},null,{"$f":"IF(入力フォーム!H34=\"\",\"\",入力フォーム!H34)","v":""},null,"千円",null,null,null,null,null,null,null,null,null,null,null,null,null,{"$f":"IF(入力フォーム!$E$65=2,\"☑\",\"□\")","v":"□"},"終身年金（10年保証期間付）",null,null,null,null,null,null,null,null,null,{"$f":"IF(AND(入力フォーム!E65=2,入力フォーム!F70=1),\"☑\",\"□\")","v":"□"},"定額型"]
[null,null,null,null,null,null,null,null,null,null,null,null,null,null,null,null,null,null,null,null,null,null,null,null,null,null,null,null,null,null,null,null,null,null,null,null,null,null,null,null,null,null,null,null,{"$f":"IF(AND(入力フォーム!E65=2,入力フォーム!F70=2),\"☑\",\"□\")","v":"□"},"逓増型"]
[null,null,null,"期末手当（６月期）",null,null,null,null,null,null,null,{"$f":"IF(入力フォーム!E36=\"\",\"\",入力フォーム!E36)","v":""},null,{"$f":"IF(入力フォーム!F36=\"\",\"\",入力フォーム!F36)","v":""},null,{"$f":"IF(入力フォーム!G36=\"\",\"\",入力フォーム!G36)","v":""},null,{"$f":"IF(入力フォーム!H36=\"\",\"\",入力フォーム!H36)","v":""},null,"千円"]
[null,null,null,null,null,null,null,null,null,null,null,null,null,null,null,null,null,null,null,null,null,null,null,null,null,null,null,null,"支払回数",null,null,null,null,{"$f":"IF(入力フォーム!$E$73=1,\"☑\",\"□\")","v":"□"},"年1回",null,{"$f":"IF(入力フォーム!$E$73=2,\"☑\",\"□\")","v":"□"},"年4回",null,{"$f":"IF(入力フォーム!$E$73=3,\"☑\",\"□\")","v":"□"},"その他ー年",null,null,null,"（",{"$f":"IF(入力フォーム!H75=\"\",\"\",入力フォーム!H75)","v":""},null,"）","回"]
[null,null,null,"期末手当（12月期）\n（ゆうちょ銀行の貯金及び損害\n保険の場合は６月期と同額）",null,null,null,null,null,null,null,{"$f":"IF(入力フォーム!E38=\"\",\"\",入力フォーム!E38)","v":""},null,{"$f":"IF(入力フォーム!F38=\"\",\"\",入力フォーム!F38)","v":""},null,{"$f":"IF(入力フォーム!G38=\"\",\"\",入力フォーム!G38)","v":""},null,{"$f":"IF(入力フォーム!H38=\"\",\"\",入力フォーム!H38)","v":""},null,"千円",null,null,null,"年金振込口座及び\n年金支払額",null,null,null,null,"積立終了時までに取扱機関所定の方法で確定します。"]
[]
[null,null,null,null,null,null,null,null,null,null,null,null,null,null,null,null,null,null,null,null,null,null,null,null,null,null,null,null,null,null,null,null,null,null,null,null,null,null,null,null,null,null,null,null,null,"（注）年金貯蓄の申込みのみ記入"]
[null,null,"非課税最高限度額",null,null,null,null,null,null,null,"限",null,null,"百万",null,null,null,"千",null,null,"円",null,null,null,null,null,"住宅資金の不足額の支払方法",false,null,null,null,{"$f":"IF(入力フォーム!$D$79=1,\"☑\",\"□\")","v":"□"},"共済組合からの融資"]
[null,null,"（年金・住宅貯蓄の場合に記入）",null,null,null,null,null,null,null,null,null,{"$f":"IF(入力フォーム!D50=\"\",\"\",入力フォーム!D50)","v":""},null,null,{"$f":"IF(入力フォーム!E50=\"\",\"\",入力フォーム!E50)","v":""},{"$f":"IF(入力フォーム!F50=\"\",\"\",入力フォーム!F50)","v":""},{"$f":"IF(入力フォーム!G50=\"\",\"\",入力フォーム!G50)","v":""},{"$f":"IF(入力フォーム!H50=\"\",\"\",入力フォーム!H50)","v":""},{"$f":"IF(入力フォーム!I50=\"\",\"\",入力フォーム!I50)","v":""},{"$f":"IF(入力フォーム!J50=\"\",\"\",入力フォーム!J50)","v":""},null,null,null,null,null,null,null,null,null,null,{"$f":"IF(入力フォーム!$D$80=1,\"☑\",\"□\")","v":"□"},"住宅金融支援機構又は沖縄振興開発金融公庫からの融資"]
[null,null,null,null,null,null,null,null,null,null,null,null,null,null,null,null,null,null,null,null,null,null,null,null,null,null,null,null,null,null,null,{"$f":"IF(入力フォーム!$D$81=1,\"☑\",\"□\")","v":"□"},"取扱機関が斡旋する金融機関からの融資"]
[null,null,null,"ゆうちょ銀行の一般財産形成貯蓄の場合は積立最高限度額を記入",null,null,null,null,null,null,null,null,null,null,null,null,null,null,null,null,null,null,null,null,null,null,null,null,null,null,null,null,null,null,null,null,null,null,null,null,null,null,"（注）住宅貯蓄の申込みのみ記入"]
[]
[null,null,null,null,null,null,null,null,"財産形成非課税",null,null,null,null,null,null,null,{"$f":"IF(R3=\"☑\",\"年金\",IF(R4=\"☑\",\"住宅\",\"年金・住宅\"))","v":"年金・住宅"},null,null,null,null,null,"貯蓄申告書"]
[]
[null,null,null,null,null,null,null,"税　務　署　長　殿",null,null,null,null,null,null,null,null,null,null,null,null,null,null,null,null,null,null,null,null,null,{"$f":"IF(OR(R3=\"☑\",R4=\"☑\"),AV7,\"　　年　　月　　日\")","v":"　　年　　月　　日"}]
[null,"ふりがな",null,null,null,null,null,null,null,null,null,null,null,null,null,null,null,null,null,"個人番号"]
[null,"氏　　名",null,null,null,null,null,null,null,null,null,null,null,null,null,null,null,null,null,{"$f":"IF(入力フォーム!$D$86=\"\",\"\",入力フォーム!$D$86)","v":""}]
[]
[null,"住　　所",null,null,null,{"$f":"IF(OR(R3=\"☑\",R4=\"☑\"),AA17,\"\")","v":""},null,null,null,null,null,null,null,null,null,null,null,null,null,null,null,null,null,null,null,null,null,null,null,null,null,null,null,null,null,null,null,"（金融機関等使用欄）"]
[]
[null,null,null,null,{"$f":"IF(R4=\"☑\",\"\",リスト!H2)","v":"財産形成年金貯蓄につき租税特別措置法第４条の３第１項"}]
[null,"下記の",null,null,{"$f":"IF(R3=\"☑\",\"\",リスト!H3)","v":"財産形成住宅貯蓄につき租税特別措置法第４条の２第１項"},null,null,null,null,null,null,null,null,null,null,null,null,null,null,null,null,"の規定の適用を受けたいので、この旨申告します。"]
[null,"区　分",null,null,null,"受入機関の営業所等",null,null,null,null,null,null,null,null,null,null,null,null,null,null,null,null,null,"最高限度額",null,null,null,null,null,null,"種　　別",null,null,null,null,null,null,null,"番　号"]
[null,"非課税扱いの申告をする最高限度額",null,null,null,"所在地",null,null,{"$f":"IF(入力フォーム!$E$88=\"\",\"\",入力フォーム!$E$88)","v":""},null,null,null,null,null,null,null,null,null,null,null,null,null,null,"百万",null,null,"千",null,null,"円",{"$f":"IF(入力フォーム!$D$96=1,\"☑\",\"□\")","v":"□"},"預　　貯　　金"]
[null,null,null,null,null,"名　称",null,null,{"$f":"IF(OR(R3=\"☑\",R4=\"☑\"),F7,\"\")","v":""},null,null,null,null,null,null,null,null,null,null,null,null,null,null,{"$f":"IF(OR(R3=\"☑\",R4=\"☑\"),M49,\"\")","v":""},{"$f":"IF(OR(R3=\"☑\",R4=\"☑\"),P49,\"\")","v":""},{"$f":"IF(OR(R3=\"☑\",R4=\"☑\"),Q49,\"\")","v":""},{"$f":"IF(OR(R3=\"☑\",R4=\"☑\"),R49,\"\")","v":""},{"$f":"IF(OR(R3=\"☑\",R4=\"☑\"),S49,\"\")","v":""},{"$f":"IF(OR(R3=\"☑\",R4=\"☑\"),T49,\"\")","v":""},{"$f":"IF(OR(R3=\"☑\",R4=\"☑\"),U49,\"\")","v":""},{"$f":"IF(入力フォーム!$D$96=2,\"☑\",\"□\")","v":"□"},"合 同 運 用 信 託"]
[null,null,null,null,null,"法人番号",null,null,null,null,null,null,null,null,null,null,null,null,null,null,null,null,null,null,null,null,null,null,null,null,{"$f":"IF(入力フォーム!$D$96=3,\"☑\",\"□\")","v":"□"},"有　価　証　券"]
[null,"※既に非課税扱いの申告をしている最高限度額",null,null,null,"名　称",null,null,{"$f":"IF(入力フォーム!E91=\"\",\"\",入力フォーム!E91)","v":""},null,null,null,null,null,null,null,null,null,null,null,null,null,null,{"$f":"IF(入力フォーム!$E$94=\"\",\"\",入力フォーム!$E$94)","v":""},{"$f":"IF(入力フォーム!$F$94=\"\",\"\",入力フォーム!$F$94)","v":""},{"$f":"IF(入力フォーム!$G$94=\"\",\"\",入力フォーム!$G$94)","v":""},{"$f":"IF(入力フォーム!$H$94=\"\",\"\",入力フォーム!$H$94)","v":""},{"$f":"IF(入力フォーム!$I$94=\"\",\"\",入力フォーム!$I$94)","v":""},{"$f":"IF(入力フォーム!$J$94=\"\",\"\",入力フォーム!$J$94)","v":""},{"$f":"IF(入力フォーム!$K$94=\"\",\"\",入力フォーム!$K$94)","v":""},{"$f":"IF(入力フォーム!$D$96=4,\"☑\",\"□\")","v":"□"},"生命・損害保険の保険料"]
[]
[null,"勤　務　先",null,null,null,"所在地",null,null,{"$f":"IF(OR(R3=\"☑\",R4=\"☑\"),F16,\"\")","v":""}]
[null,null,null,null,null,"名　称",null,null,{"$f":"IF(OR(R3=\"☑\",R4=\"☑\"),F10,\"\")","v":""},null,null,null,null,null,null,null,null,null,null,null,null,null,null,null,null,null,null,null,null,null,null,"受入機関の\n受理日付印"]
[null,"賃金の支払者",null,null,null,"所在地",null,null,{"$f":"I69","v":""}]
[null,null,null,null,null,"名　称",null,null,{"$f":"I70","v":""},null,null,null,null,null,null,null,null,null,null,"法人番号",null,null,{"$f":"IF(OR(R3=\"☑\",R4=\"☑\"),J18,\"\")","v":""},null,null,null,null,null,null,null,null,null,null,null,null,null,null,null,null,null,null,null,"受付日付印",null,null,null,null,null,"検印"]
[null,"事務代行先",null,null,null,"所在地"]
[null,null,null,null,null,"名　称",null,null,null,null,null,null,null,null,null,null,null,null,null,"法人番号"]
[null,"※欄に記載した事項は、勤務先の長により事実に相違ないことを確認しました。"]
[null,null,null,"令和　　　年　　　月　　　日"]

{"sheet":"申込書（勤務先用）","index":2,"n_rows":76,"n_cols":53,"rows_kept":76,"cut":false,"hidden":false,"merged":[[74,1,74,29],[75,3,75,15],[52,28,53,31],[1,24,3,37],[4,24,5,30],[72,1,73,4],[72,5,72,7],[72,8,72,29],[73,5,73,7],[73,8,73,18],[73,19,73,21],[73,22,73,29],[70,1,71,4],[70,5,70,7],[70,8,70,29],[71,5,71,7],[71,8,71,18],[71,19,71,21],[71,22,71,29],[66,26,67,26],[66,27,67,27],[66,28,67,28],[66,29,67,29],[66,31,66,35],[68,1,69,4],[68,5,68,7],[68,8,68,29],[69,5,69,7],[69,8,69,29],[66,1,67,4],[66,5,67,7],[66,8,67,22],[66,23,67,23],[66,24,67,24],[66,25,67,25],[64,27,65,27],[64,28,65,28],[64,29,65,29],[64,31,64,35],[65,5,65,7],[65,8,65,22],[65,31,65,35],[63,1,65,4],[63,5,63,7],[63,8,63,22],[63,31,63,35],[64,5,64,7],[64,8,64,22],[64,23,65,23],[64,24,65,24],[64,25,65,25],[64,26,65,26],[58,1,59,4],[58,5,59,34],[60,4,60,19],[61,4,61,19],[62,1,62,4],[62,5,62,22],[62,23,62,29],[62,30,62,35],[54,29,54,34],[55,1,55,4],[55,5,55,18],[55,19,55,34],[56,1,57,4],[56,5,57,18],[56,19,57,34],[48,19,49,19],[48,20,49,20],[52,8,53,15],[52,16,53,21],[52,22,53,27],[53,1,54,6],[47,2,47,9],[47,10,49,11],[47,13,47,14],[47,26,49,30],[48,2,49,9],[48,12,49,14],[48,15,49,15],[48,16,49,16],[48,17,49,17],[48,18,49,18],[42,45,42,46],[43,45,43,46],[44,3,46,10],[44,11,46,12],[44,13,46,14],[44,15,46,16],[44,17,46,18],[44,19,46,20],[44,23,45,27],[44,28,45,53],[38,23,43,27],[40,17,41,18],[40,19,41,20],[42,3,43,10],[42,11,43,12],[42,13,43,14],[42,15,43,16],[42,17,43,18],[42,19,43,20],[38,2,39,8],[38,9,39,10],[38,12,39,16],[38,17,39,20],[40,2,46,2],[40,3,41,10],[40,11,41,12],[40,13,41,14],[40,15,41,16],[36,37,37,43],[36,44,37,45],[36,46,37,47],[36,48,37,48],[36,49,37,50],[34,20,35,20],[36,51,37,53],[34,50,35,51],[34,52,35,53],[36,2,37,8],[36,9,37,15],[36,16,37,16],[36,17,37,19],[36,20,37,20],[36,23,37,27],[36,28,37,34],[36,35,37,36],[34,23,35,27],[34,28,35,32],[34,33,35,35],[34,36,35,37],[34,38,35,42],[34,43,35,49],[13,16,14,16],[19,22,20,25],[19,26,20,53],[32,1,49,1],[32,2,33,8],[32,9,32,20],[32,22,45,22],[32,23,33,27],[32,28,33,35],[19,1,20,4],[19,5,20,10],[19,11,20,11],[19,12,20,14],[19,15,20,15],[19,16,20,19],[32,36,33,36],[32,37,33,39],[32,40,33,40],[32,41,33,53],[33,9,33,20],[34,2,35,8],[34,9,35,15],[34,16,35,16],[34,17,35,19],[9,5,10,21],[9,22,10,25],[9,26,10,27],[9,28,10,29],[9,30,10,31],[14,26,14,53],[15,1,16,4],[15,5,16,21],[15,22,18,25],[15,27,15,34],[16,26,18,53],[17,1,18,8],[17,9,18,21],[13,17,14,17],[13,18,14,18],[13,19,14,19],[13,20,14,20],[13,21,14,21],[14,22,14,25],[13,5,14,11],[13,12,14,12],[13,13,14,13],[13,14,14,14],[13,15,14,15],[6,1,7,4],[6,20,7,21],[6,47,7,53],[1,18,1,22],[2,18,2,22],[3,18,3,22],[6,5,7,19],[9,44,10,45],[9,46,10,48],[9,49,9,53],[10,49,13,53],[11,1,14,4],[11,5,12,21],[11,22,11,25],[11,26,11,48],[12,22,13,25],[12,26,13,48],[9,32,10,33],[9,34,10,35],[9,36,10,37],[9,38,10,39],[9,40,10,41],[9,42,10,43],[9,1,10,4]]}
["（国家公務員用）"]
[null,null,null,null,null,null,null,null,null,null,null,null,null,null,null,null,null,{"$f":"'申込書（金融機関等用）'!R2","v":"□"},"財  産  形  成",null,null,null,null,null,"貯蓄天引積立依頼書"]
[null,null,null,null,null,null,null,null,null,null,null,null,null,null,null,null,null,{"$f":"'申込書（金融機関等用）'!R3","v":"□"},"財産形成年金"]
[null,null,null,null,null,null,null,null,null,null,null,null,null,null,null,null,null,{"$f":"'申込書（金融機関等用）'!R4","v":"□"},"財産形成住宅"]
[null,null,null,null,null,null,null,null,null,null,null,null,null,null,null,null,null,null,null,null,null,null,null,null,"所 属 省 庁 御 中"]
[]
[null,"取扱金融\n機 関 等",null,null,null,{"$f":"'申込書（金融機関等用）'!F7","v":0},null,null,null,null,null,null,null,null,null,null,null,null,null,null,"御中",null,null,null,null,null,null,null,null,null,null,null,null,null,null,null,null,null,null,null,null,null,null,null,null,null,null,{"$f":"IF('申込書（金融機関等用）'!AV7:BB8=\"\",\"\",'申込書（金融機関等用）'!AV7:BB8)","v":"2025-03-18"}]
[]
[]
[null,"勤  務  先",null,null,null,{"$f":"'申込書（金融機関等用）'!F10","v":0},null,null,null,null,null,null,null,null,null,null,null,null,null,null,null,null,"職 員 番 号",null,null,null,{"$f":"IF('申込書（金融機関等用）'!AA10:AB11=\"\",\"\",'申込書（金融機関等用）'!AA10:AB11)","v":""},null,{"$f":"IF('申込書（金融機関等用）'!AC10:AD11=\"\",\"\",'申込書（金融機関等用）'!AC10:AD11)","v":""},null,{"$f":"IF('申込書（金融機関等用）'!AE10:AF11=\"\",\"\",'申込書（金融機関等用）'!AE10:AF11)","v":""},null,{"$f":"IF('申込書（金融機関等用）'!AG10:AH11=\"\",\"\",'申込書（金融機関等用）'!AG10:AH11)","v":""},null,{"$f":"IF('申込書（金融機関等用）'!AI10:AJ11=\"\",\"\",'申込書（金融機関等用）'!AI10:AJ11)","v":""},null,{"$f":"IF('申込書（金融機関等用）'!AK10:AL11=\"\",\"\",'申込書（金融機関等用）'!AK10:AL11)","v":""},null,{"$f":"IF('申込書（金融機関等用）'!AM10:AN11=\"\",\"\",'申込書（金融機関等用）'!AM10:AN11)","v":""},null,{"$f":"IF('申込書（金融機関等用）'!AO10:AP11=\"\",\"\",'申込書（金融機関等用）'!AO10:AP11)","v":""},null,{"$f":"IF('申込書（金融機関等用）'!AQ10:AR11=\"\",\"\",'申込書（金融機関等用）'!AQ10:AR11)","v":""},null,{"$f":"IF('申込書（金融機関等用）'!AS10:AT11=\"\",\"\",'申込書（金融機関等用）'!AS10:AT11)","v":""},null,null,null,null,"お届出印"]
[]
[null,"所属部課\n同  番  号",null,null,null,null,null,null,null,null,null,null,null,null,null,null,null,null,null,null,null,null,"ふりがな"]
[null,null,null,null,null,null,null,null,null,null,null,null,null,null,null,null,null,null,null,null,null,null,"氏　    名"]
[]
[null,null,null,null,null,null,null,null,null,null,null,null,null,null,null,null,null,null,null,null,null,null,"ふりがな",null,null,null,{"$f":"'申込書（金融機関等用）'!AA15","v":0}]
[null,"所  在  地",null,null,null,{"$f":"'申込書（金融機関等用）'!F16","v":{"$error":"#N/A"}},null,null,null,null,null,null,null,null,null,null,null,null,null,null,null,null,"住　    所",null,null,null,"(〒",{"$f":"'申込書（金融機関等用）'!AB16","v":0},null,null,null,null,null,null,null,")"]
[null,null,null,null,null,null,null,null,null,null,null,null,null,null,null,null,null,null,null,null,null,null,null,null,null,null,{"$f":"'申込書（金融機関等用）'!AA17","v":0}]
[null,"法人番号\n（年金・住宅貯蓄の場合に記入）",null,null,null,null,null,null,null,{"$f":"'申込書（金融機関等用）'!J18","v":""}]
[]
[null,"生年月日",null,null,null,{"$f":"'申込書（金融機関等用）'!F20","v":"00:00:00"},null,null,null,null,null,"(満",{"$f":"'申込書（金融機関等用）'!M20","v":125},null,null,"歳)","男女別",null,null,null,"男","女","電 話 番 号",null,null,null,{"$f":"'申込書（金融機関等用）'!AA20","v":0}]
[null,null,null,null,null,null,null,null,null,null,null,null,null,null,null,null,null,null,null,null,{"$f":"'申込書（金融機関等用）'!U21","v":"□"},{"$f":"'申込書（金融機関等用）'!V21","v":"□"}]
[]
[]
[]
[]
[null,null,"私は、勤労者財産形成促進法第６条第１項、第２項又は第４項による貯蓄を行いたいので、下記により積立額を給与から天引きしたうえ、取扱金融機関等へ預入等していただきますよう依頼します。"]
[null,null,"なお、預入金額等を変更するときは、あらかじめ文書をもってお届けします。"]
[]
[]
[]
[]
[]
[null,"共　通　申　込　事　項","貯蓄の種類（種別）",null,null,null,null,null,null,{"$f":"'申込書（金融機関等用）'!J33","v":0},null,null,null,null,null,null,null,null,null,null,null,null,"年金の支払に関する事項","支 払 開 始 日",null,null,null,null,{"$f":"'申込書（金融機関等用）'!AC33","v":""},null,null,null,null,null,null,null,"(満",{"$f":"'申込書（金融機関等用）'!AL33","v":""},null,null,"歳)","（６０歳以降とする）"]
[null,null,null,null,null,null,null,null,null,{"$f":"'申込書（金融機関等用）'!J34","v":""}]
[null,null,"積   立   開   始   日",null,null,null,null,null,null,{"$f":"'申込書（金融機関等用）'!J35","v":"00:00:00"},null,null,null,null,null,null,"(満",{"$f":"'申込書（金融機関等用）'!R35","v":0},null,null,"歳)",null,null,"支  払  期  間",null,null,null,null,"支払開始日より",null,null,null,null,{"$f":"'申込書（金融機関等用）'!AH35","v":""},null,null,"年間",null,"５年以上２０年\n以内とする",null,null,null,null,"（又は支払開始日より",null,null,null,null,null,null,{"$f":"'申込書（金融機関等用）'!AY35","v":""},null,"回）"]
[]
[null,null,"積立終了日（年金貯蓄・積立定期預金の場合のみ）",null,null,null,null,null,null,{"$f":"'申込書（金融機関等用）'!J37","v":""},null,null,null,null,null,null,"(満",{"$f":"'申込書（金融機関等用）'!R37","v":""},null,null,"歳)",null,null,"ゆうちょ銀行の財産形成年金貯蓄の支払期間",null,null,null,null,{"$f":"'申込書（金融機関等用）'!AC37","v":""},null,null,null,null,null,null,"から",null,{"$f":"'申込書（金融機関等用）'!AL37","v":""},null,null,null,null,null,null,"まで",null,{"$f":"'申込書（金融機関等用）'!AU37","v":""},null,"年",{"$f":"'申込書（金融機関等用）'!AX37","v":""},null,"月間"]
[]
[null,null,"保 　険　 期　 間\n（年金・損害保険の場合のみ）",null,null,null,null,null,null,{"$f":"'申込書（金融機関等用）'!J39","v":""},null,null,"一般財形３年以上\n住宅貯蓄５年以上",null,null,null,null,"期間は積立開始日から開始します。",null,null,null,null,null,"年金支払方法\n及び支払回数",null,null,null,null,"支払方法",null,null,null,null,{"$f":"'申込書（金融機関等用）'!AH39","v":"□"},"定額型",null,null,{"$f":"'申込書（金融機関等用）'!AL39","v":"□"},"逓増型",null,null,{"$f":"'申込書（金融機関等用）'!AP39","v":"□"},"定額逓増型（損害保険）"]
[null,null,null,null,null,null,null,null,null,null,null,"年",null,null,null,null,null,null,null,null,null,null,null,null,null,null,null,null,"(生命保険)",null,null,null,null,{"$f":"'申込書（金融機関等用）'!AH40","v":"□"},"確定年金（定額型）",null,null,null,null,null,null,null,"（",{"$f":"'申込書（金融機関等用）'!AR40","v":"□"},"6年",null,{"$f":"'申込書（金融機関等用）'!AU40","v":"□"},"10年",null,{"$f":"'申込書（金融機関等用）'!AX40","v":"□"},"15年",null,"）"]
[null,null,"積立額","俸　　　　　　給",null,null,null,null,null,null,null,{"$f":"'申込書（金融機関等用）'!L41","v":""},null,{"$f":"'申込書（金融機関等用）'!N41","v":""},null,{"$f":"'申込書（金融機関等用）'!P41","v":""},null,{"$f":"'申込書（金融機関等用）'!R41","v":""},null,"千円",null,null,null,null,null,null,null,null,null,null,null,null,null,{"$f":"'申込書（金融機関等用）'!AH41","v":"□"},"終身年金（10年保証期間付）",null,null,null,null,null,null,null,null,null,{"$f":"'申込書（金融機関等用）'!AS41","v":"□"},"定額型"]
[null,null,null,null,null,null,null,null,null,null,null,null,null,null,null,null,null,null,null,null,null,null,null,null,null,null,null,null,null,null,null,null,null,null,null,null,null,null,null,null,null,null,null,null,{"$f":"'申込書（金融機関等用）'!AS42","v":"□"},"逓増型"]
[null,null,null,"期末手当（６月期）",null,null,null,null,null,null,null,{"$f":"'申込書（金融機関等用）'!L43","v":""},null,{"$f":"'申込書（金融機関等用）'!N43","v":""},null,{"$f":"'申込書（金融機関等用）'!P43","v":""},null,{"$f":"'申込書（金融機関等用）'!R43","v":""},null,"千円"]
[null,null,null,null,null,null,null,null,null,null,null,null,null,null,null,null,null,null,null,null,null,null,null,null,null,null,null,null,"支払回数",null,null,null,null,{"$f":"'申込書（金融機関等用）'!AH44","v":"□"},"年1回",null,{"$f":"'申込書（金融機関等用）'!AK44","v":"□"},"年4回",null,{"$f":"'申込書（金融機関等用）'!AN44","v":"□"},"その他ー年",null,null,null,"（",{"$f":"'申込書（金融機関等用）'!AT44","v":""},null,"）","回"]
[null,null,null,"期末手当（12月期）\n（ゆうちょ銀行の貯金及び損害\n保険の場合は６月期と同額）",null,null,null,null,null,null,null,{"$f":"'申込書（金融機関等用）'!L45","v":""},null,{"$f":"'申込書（金融機関等用）'!N45","v":""},null,{"$f":"'申込書（金融機関等用）'!P45","v":""},null,{"$f":"'申込書（金融機関等用）'!R45","v":""},null,"千円",null,null,null,"年金振込口座及び\n年金支払額",null,null,null,null,"積立終了時までに取扱機関所定の方法で確定します。"]
[]
[null,null,null,null,null,null,null,null,null,null,null,null,null,null,null,null,null,null,null,null,null,null,null,null,null,null,null,null,null,null,null,null,null,null,null,null,null,null,null,null,null,null,null,null,null,"（注）年金貯蓄の申込みのみ記入"]
[null,null,"非課税最高限度額",null,null,null,null,null,null,null,"限",null,null,"百万",null,null,null,"千",null,null,"円",null,null,null,null,null,"住宅資金の不足額の支払方法",false,null,null,null,{"$f":"'申込書（金融機関等用）'!AF48","v":"□"},"共済組合からの融資"]
[null,null,"（年金・住宅貯蓄の場合に記入）",null,null,null,null,null,null,null,null,null,{"$f":"'申込書（金融機関等用）'!M49","v":""},null,null,{"$f":"'申込書（金融機関等用）'!P49","v":""},{"$f":"'申込書（金融機関等用）'!Q49","v":""},{"$f":"'申込書（金融機関等用）'!R49","v":""},{"$f":"'申込書（金融機関等用）'!S49","v":""},{"$f":"'申込書（金融機関等用）'!T49","v":""},{"$f":"'申込書（金融機関等用）'!U49","v":""},null,null,null,null,null,null,null,null,null,null,{"$f":"'申込書（金融機関等用）'!AF49","v":"□"},"住宅金融支援機構又は沖縄振興開発金融公庫からの融資"]
[null,null,null,null,null,null,null,null,null,null,null,null,null,null,null,null,null,null,null,null,null,null,null,null,null,null,null,null,null,null,null,{"$f":"'申込書（金融機関等用）'!AF50","v":"□"},"取扱機関が斡旋する金融機関からの融資"]
[null,null,null,"ゆうちょ銀行の一般財産形成貯蓄の場合は積立最高限度額を記入",null,null,null,null,null,null,null,null,null,null,null,null,null,null,null,null,null,null,null,null,null,null,null,null,null,null,null,null,null,null,null,null,null,null,null,null,null,null,"（注）住宅貯蓄の申込みのみ記入"]
[]
[null,null,null,null,null,null,null,null,"財産形成非課税",null,null,null,null,null,null,null,{"$f":"'申込書（金融機関等用）'!Q53","v":"年金・住宅"},null,null,null,null,null,"貯蓄申告書",null,null,null,null,null,"（勤務先控）"]
[]
[null,null,null,null,null,null,null,"税　務　署　長　殿",null,null,null,null,null,null,null,null,null,null,null,null,null,null,null,null,null,null,null,null,null,{"$f":"'申込書（金融機関等用）'!AD55","v":"　　年　　月　　日"}]
[null,"ふりがな",null,null,null,null,null,null,null,null,null,null,null,null,null,null,null,null,null,"個人番号"]
[null,"氏　　名",null,null,null,null,null,null,null,null,null,null,null,null,null,null,null,null,null,{"$f":"'申込書（金融機関等用）'!T57","v":""}]
[]
[null,"住　　所",null,null,null,{"$f":"'申込書（金融機関等用）'!F59","v":""}]
[]
[null,null,null,null,{"$f":"'申込書（金融機関等用）'!E61","v":"財産形成年金貯蓄につき租税特別措置法第４条の３第１項"}]
[null,"下記の",null,null,{"$f":"'申込書（金融機関等用）'!E62","v":"財産形成住宅貯蓄につき租税特別措置法第４条の２第１項"},null,null,null,null,null,null,null,null,null,null,null,null,null,null,null,null,"の規定の適用を受けたいので、この旨申告します。"]
[null,"区　分",null,null,null,"受入機関の営業所等",null,null,null,null,null,null,null,null,null,null,null,null,null,null,null,null,null,"最高限度額",null,null,null,null,null,null,"種　　別"]
[null,"非課税扱いの申告をする最高限度額",null,null,null,"所在地",null,null,{"$f":"'申込書（金融機関等用）'!I64","v":""},null,null,null,null,null,null,null,null,null,null,null,null,null,null,"百万",null,null,"千",null,null,"円",{"$f":"'申込書（金融機関等用）'!AE64","v":"□"},"預　　貯　　金"]
[null,null,null,null,null,"名　称",null,null,{"$f":"'申込書（金融機関等用）'!I65","v":""},null,null,null,null,null,null,null,null,null,null,null,null,null,null,{"$f":"'申込書（金融機関等用）'!X65","v":""},{"$f":"'申込書（金融機関等用）'!Y65","v":""},{"$f":"'申込書（金融機関等用）'!Z65","v":""},{"$f":"'申込書（金融機関等用）'!AA65","v":""},{"$f":"'申込書（金融機関等用）'!AB65","v":""},{"$f":"'申込書（金融機関等用）'!AC65","v":""},{"$f":"'申込書（金融機関等用）'!AD65","v":""},{"$f":"'申込書（金融機関等用）'!AE65","v":"□"},"合 同 運 用 信 託"]
[null,null,null,null,null,"法人番号",null,null,null,null,null,null,null,null,null,null,null,null,null,null,null,null,null,null,null,null,null,null,null,null,{"$f":"'申込書（金融機関等用）'!AE66","v":"□"},"有　価　証　券"]
[null,"※既に非課税扱いの申告をしている最高限度額",null,null,null,"名　称",null,null,{"$f":"'申込書（金融機関等用）'!I67:W68","v":""},null,null,null,null,null,null,null,null,null,null,null,null,null,null,{"$f":"'申込書（金融機関等用）'!X67","v":""},{"$f":"'申込書（金融機関等用）'!Y67","v":""},{"$f":"'申込書（金融機関等用）'!Z67","v":""},{"$f":"'申込書（金融機関等用）'!AA67","v":""},{"$f":"'申込書（金融機関等用）'!AB67","v":""},{"$f":"'申込書（金融機関等用）'!AC67","v":""},{"$f":"'申込書（金融機関等用）'!AD67","v":""},{"$f":"'申込書（金融機関等用）'!AE67","v":"□"},"生命・損害保険の保険料"]
[]
[null,"勤　務　先",null,null,null,"所在地",null,null,{"$f":"'申込書（金融機関等用）'!I69","v":""}]
[null,null,null,null,null,"名　称",null,null,{"$f":"'申込書（金融機関等用）'!I70","v":""}]
[null,"賃金の支払者",null,null,null,"所在地",null,null,{"$f":"'申込書（金融機関等用）'!I71","v":""}]
[null,null,null,null,null,"名　称",null,null,{"$f":"'申込書（金融機関等用）'!I72","v":""},null,null,null,null,null,null,null,null,null,null,"法人番号",null,null,{"$f":"'申込書（金融機関等用）'!W72","v":""}]
[null,"事務代行先",null,null,null,"所在地"]
[null,null,null,null,null,"名　称",null,null,null,null,null,null,null,null,null,null,null,null,null,"法人番号"]
[null,"※欄に記載した事項は、勤務先の長により事実に相違ないことを確認しました。"]
[null,null,null,"令和　　　年　　　月　　　日"]

{"sheet":"申込書（加入者控）","index":3,"n_rows":76,"n_cols":53,"rows_kept":76,"cut":false,"hidden":false,"merged":[[74,1,74,29],[75,3,75,15],[52,28,53,31],[72,1,73,4],[72,5,72,7],[72,8,72,29],[73,5,73,7],[73,8,73,18],[73,19,73,21],[73,22,73,29],[70,1,71,4],[70,5,70,7],[70,8,70,29],[71,5,71,7],[71,8,71,18],[71,19,71,21],[71,22,71,29],[66,26,67,26],[66,27,67,27],[66,28,67,28],[66,29,67,29],[66,31,66,35],[68,1,69,4],[68,5,68,7],[68,8,68,29],[69,5,69,7],[69,8,69,29],[66,1,67,4],[66,5,67,7],[66,8,67,22],[66,23,67,23],[66,24,67,24],[66,25,67,25],[64,27,65,27],[64,28,65,28],[64,29,65,29],[64,31,64,35],[65,5,65,7],[65,8,65,22],[65,31,65,35],[63,1,65,4],[63,5,63,7],[63,8,63,22],[63,31,63,35],[64,5,64,7],[64,8,64,22],[64,23,65,23],[64,24,65,24],[64,25,65,25],[64,26,65,26],[58,1,59,4],[58,5,59,34],[60,4,60,19],[61,4,61,19],[62,1,62,4],[62,5,62,22],[62,23,62,29],[62,30,62,35],[54,29,54,34],[55,1,55,4],[55,5,55,18],[55,19,55,34],[56,1,57,4],[56,5,57,18],[56,19,57,34],[48,19,49,19],[48,20,49,20],[52,8,53,15],[52,16,53,21],[52,22,53,27],[53,1,54,6],[47,2,47,9],[47,10,49,11],[47,13,47,14],[47,26,49,30],[48,2,49,9],[48,12,49,14],[48,15,49,15],[48,16,49,16],[48,17,49,17],[48,18,49,18],[42,45,42,46],[43,45,43,46],[44,3,46,10],[44,11,46,12],[44,13,46,14],[44,15,46,16],[44,17,46,18],[44,19,46,20],[44,23,45,27],[44,28,45,53],[38,23,43,27],[40,17,41,18],[40,19,41,20],[42,3,43,10],[42,11,43,12],[42,13,43,14],[42,15,43,16],[42,17,43,18],[42,19,43,20],[38,2,39,8],[38,9,39,10],[38,12,39,16],[38,17,39,20],[40,2,46,2],[40,3,41,10],[40,11,41,12],[40,13,41,14],[40,15,41,16],[36,2,37,8],[36,9,37,15],[36,16,37,16],[36,17,37,19],[36,20,37,20],[36,23,37,27],[36,28,37,34],[36,35,37,36],[34,23,35,27],[34,28,35,32],[34,33,35,35],[34,36,35,37],[34,17,35,19],[34,20,35,20],[36,37,37,43],[36,44,37,45],[36,46,37,47],[36,48,37,48],[36,49,37,50],[36,51,37,53],[34,50,35,51],[34,52,35,53],[34,38,35,42],[34,43,35,49],[19,22,20,25],[19,26,20,53],[30,8,30,21],[31,8,31,21],[32,1,49,1],[32,2,33,8],[32,9,32,20],[32,22,45,22],[32,23,33,27],[32,28,33,35],[19,1,20,4],[19,5,20,10],[19,11,20,11],[19,12,20,14],[19,15,20,15],[19,16,20,19],[32,36,33,36],[32,37,33,39],[32,40,33,40],[32,41,33,53],[33,9,33,20],[34,2,35,8],[34,9,35,15],[34,16,35,16],[15,1,16,4],[15,5,16,21],[15,22,18,25],[15,27,15,34],[16,26,18,53],[17,1,18,8],[17,9,18,21],[13,17,14,17],[13,18,14,18],[13,19,14,19],[13,20,14,20],[13,21,14,21],[14,22,14,25],[13,5,14,11],[13,12,14,12],[13,13,14,13],[13,14,14,14],[13,15,14,15],[13,16,14,16],[9,44,10,45],[9,46,10,48],[9,49,9,53],[10,49,13,53],[11,1,14,4],[11,5,12,21],[11,22,11,25],[11,26,11,48],[12,22,13,25],[12,26,13,48],[9,32,10,33],[9,34,10,35],[9,36,10,37],[9,38,10,39],[9,40,10,41],[9,42,10,43],[9,1,10,4],[9,5,10,21],[9,22,10,25],[9,26,10,27],[9,28,10,29],[9,30,10,31],[14,26,14,53],[6,1,7,4],[6,20,7,21],[6,47,7,53],[1,18,1,22],[1,24,2,30],[2,18,2,22],[3,18,3,22],[3,24,3,30],[5,21,5,36],[6,5,7,19]]}
["（国家公務員用）"]
[null,null,null,null,null,null,null,null,null,null,null,null,null,null,null,null,null,{"$f":"'申込書（勤務先用）'!R2","v":"□"},"財  産  形  成",null,null,null,null,null,"貯蓄申込書"]
[null,null,null,null,null,null,null,null,null,null,null,null,null,null,null,null,null,{"$f":"'申込書（勤務先用）'!R3","v":"□"},"財産形成年金"]
[null,null,null,null,null,null,null,null,null,null,null,null,null,null,null,null,null,{"$f":"'申込書（勤務先用）'!R4","v":"□"},"財産形成住宅",null,null,null,null,null,"（兼   印   鑑   届）"]
[]
[null,null,null,null,null,null,null,null,null,null,null,null,null,null,null,null,null,null,null,null,null,{"$f":"'申込書（金融機関等用）'!V6","v":""}]
[null,"取扱金融\n機 関 等",null,null,null,{"$f":"'申込書（勤務先用）'!F7","v":0},null,null,null,null,null,null,null,null,null,null,null,null,null,null,"御中",null,null,null,null,null,null,null,null,null,null,null,null,null,null,null,null,null,null,null,null,null,null,null,null,null,null,{"$f":"'申込書（勤務先用）'!AV7:BB8","v":"2025-03-18"}]
[]
[]
[null,"勤  務  先",null,null,null,{"$f":"'申込書（勤務先用）'!F10","v":0},null,null,null,null,null,null,null,null,null,null,null,null,null,null,null,null,"職 員 番 号",null,null,null,{"$f":"'申込書（勤務先用）'!AA10:AB11","v":""},null,{"$f":"'申込書（勤務先用）'!AC10:AD11","v":""},null,{"$f":"'申込書（勤務先用）'!AE10:AF11","v":""},null,{"$f":"'申込書（勤務先用）'!AG10:AH11","v":""},null,{"$f":"'申込書（勤務先用）'!AI10:AJ11","v":""},null,{"$f":"'申込書（勤務先用）'!AK10:AL11","v":""},null,{"$f":"'申込書（勤務先用）'!AM10:AN11","v":""},null,{"$f":"'申込書（勤務先用）'!AO10:AP11","v":""},null,{"$f":"'申込書（勤務先用）'!AQ10:AR11","v":""},null,{"$f":"'申込書（勤務先用）'!AS10:AT11","v":""},null,null,null,null,"お届出印"]
[]
[null,"所属部課\n同  番  号",null,null,null,null,null,null,null,null,null,null,null,null,null,null,null,null,null,null,null,null,"ふりがな"]
[null,null,null,null,null,null,null,null,null,null,null,null,null,null,null,null,null,null,null,null,null,null,"氏　    名"]
[]
[null,null,null,null,null,null,null,null,null,null,null,null,null,null,null,null,null,null,null,null,null,null,"ふりがな",null,null,null,{"$f":"'申込書（勤務先用）'!AA15:BB15","v":0}]
[null,"所  在  地",null,null,null,{"$f":"'申込書（勤務先用）'!F16:V17","v":{"$error":"#N/A"}},null,null,null,null,null,null,null,null,null,null,null,null,null,null,null,null,"住　    所",null,null,null,"(〒",{"$f":"'申込書（勤務先用）'!AB16:AI16","v":0},null,null,null,null,null,null,null,")"]
[null,null,null,null,null,null,null,null,null,null,null,null,null,null,null,null,null,null,null,null,null,null,null,null,null,null,{"$f":"'申込書（勤務先用）'!AA17:BB19","v":0}]
[null,"法人番号\n（年金・住宅貯蓄の場合に記入）",null,null,null,null,null,null,null,{"$f":"'申込書（勤務先用）'!J18:V19","v":""}]
[]
[null,"生年月日",null,null,null,{"$f":"'申込書（勤務先用）'!F20:K21","v":"00:00:00"},null,null,null,null,null,"(満",{"$f":"'申込書（勤務先用）'!M20:O21","v":125},null,null,"歳)","男女別",null,null,null,"男","女","電 話 番 号",null,null,null,{"$f":"'申込書（勤務先用）'!AA20:BB21","v":0}]
[null,null,null,null,null,null,null,null,null,null,null,null,null,null,null,null,null,null,null,null,{"$f":"'申込書（勤務先用）'!U21","v":"□"},{"$f":"'申込書（勤務先用）'!V21","v":"□"}]
[null,"1. 私は、勤労者財産形成促進法第６条第１項、第２項又は第４項による貯蓄を行いたいので、貴行（社・金庫・組合）所定の財産形成貯蓄、財産形成年金貯蓄又は財産形成住宅貯蓄（以下、財産"]
[null,"形成貯蓄等という。）に関する規定及び約款に従って、下記により財産形成貯蓄等の預入等を印鑑を届出のうえ申し込みます。"]
[null,"　この貯蓄については、所属省庁が私の給与から積立額を天引きし私に代わって預入等を行います。私は、財産形成貯蓄については３年以上、財産形成年金・住宅貯蓄については５年以上積み立"]
[null,"てるとともに財産形成貯蓄については１年間払出しをいたしません。財形年金においては、原則として年金による払出しの場合に限り、また財形住宅においては原則として持家としての住宅の取"]
[null,"得等の場合に限り払出しをします。"]
[null,"　この貯蓄（元加利息を含む。）は私から特に申し出をしない限り、満期日後は引き続き貴店（移管があった場合は、移管後の店舗）において財産形成貯蓄等としてお取り扱いください。更新さ"]
[null,"れた財産形成貯蓄等の満期日後についても同様にお取り扱いください。"]
[null,"　なお、有価証券を購入する場合には、その有価証券はすべて貴行（社・金庫）に寄託するとともに大券保管されることに同意いたします。また、ゆうちょ銀行の一般財産形成貯蓄の場合、積立"]
[null,"期間が終了するまで貯金証書を保管してください。"]
[null,null,null,null,null,null,null,null,{"$f":"'申込書（金融機関等用）'!I31:V31","v":"財産形成年金貯蓄につき租特法第４条の３第１項"}]
[null,"2.私は、下記の金額の",null,null,null,null,null,null,{"$f":"'申込書（金融機関等用）'!I32:V32","v":"財産形成住宅貯蓄につき租特法第４条の２第１項"},null,null,null,null,null,null,null,null,null,null,null,null,null,null,"の規定の適用を受けたいので、この旨申し込みます。"]
[null,"共　通　申　込　事　項","貯蓄の種類（種別）",null,null,null,null,null,null,{"$f":"'申込書（勤務先用）'!J33:U33","v":0},null,null,null,null,null,null,null,null,null,null,null,null,"年金の支払に関する事項","支 払 開 始 日",null,null,null,null,{"$f":"'申込書（勤務先用）'!AC33:AJ34","v":""},null,null,null,null,null,null,null,"(満",{"$f":"'申込書（勤務先用）'!AL33:AN34","v":""},null,null,"歳)","（６０歳以降とする）"]
[null,null,null,null,null,null,null,null,null,{"$f":"'申込書（勤務先用）'!J34:U34","v":""}]
[null,null,"積   立   開   始   日",null,null,null,null,null,null,{"$f":"'申込書（勤務先用）'!J35:P36","v":"00:00:00"},null,null,null,null,null,null,"(満",{"$f":"'申込書（勤務先用）'!R35:T36","v":0},null,null,"歳)",null,null,"支  払  期  間",null,null,null,null,"支払開始日より",null,null,null,null,{"$f":"'申込書（勤務先用）'!AH35:AJ36","v":""},null,null,"年間",null,"５年以上２０年\n以内とする",null,null,null,null,"（又は支払開始日より",null,null,null,null,null,null,{"$f":"'申込書（勤務先用）'!AY35:AZ36","v":""},null,"回）"]
[]
[null,null,"積立終了日（年金貯蓄・積立定期預金の場合のみ）",null,null,null,null,null,null,{"$f":"'申込書（勤務先用）'!J37:P38","v":""},null,null,null,null,null,null,"(満",{"$f":"'申込書（勤務先用）'!R37:T38","v":""},null,null,"歳)",null,null,"ゆうちょ銀行の財産形成年金貯蓄の支払期間",null,null,null,null,{"$f":"'申込書（勤務先用）'!AC37:AI38","v":""},null,null,null,null,null,null,"から",null,{"$f":"'申込書（勤務先用）'!AL37:AR38","v":""},null,null,null,null,null,null,"まで",null,{"$f":"'申込書（勤務先用）'!AU37:AV38","v":""},null,"年",{"$f":"'申込書（勤務先用）'!AX37:AY38","v":""},null,"月間"]
[]
[null,null,"保 　険　 期　 間\n（年金・損害保険の場合のみ）",null,null,null,null,null,null,{"$f":"'申込書（勤務先用）'!J39:K40","v":""},null,null,"一般財形３年以上\n住宅貯蓄５年以上",null,null,null,null,"期間は積立開始日から開始します。",null,null,null,null,null,"年金支払方法\n及び支払回数",null,null,null,null,"支払方法",null,null,null,null,{"$f":"'申込書（勤務先用）'!AH39","v":"□"},"定額型",null,null,{"$f":"'申込書（勤務先用）'!AL39","v":"□"},"逓増型",null,null,{"$f":"'申込書（勤務先用）'!AP39","v":"□"},"定額逓増型（損害保険）"]
[null,null,null,null,null,null,null,null,null,null,null,"年",null,null,null,null,null,null,null,null,null,null,null,null,null,null,null,null,"(生命保険)",null,null,null,null,{"$f":"'申込書（勤務先用）'!AH40","v":"□"},"確定年金（定額型）",null,null,null,null,null,null,null,"（",{"$f":"'申込書（勤務先用）'!AR40","v":"□"},"6年",null,{"$f":"'申込書（勤務先用）'!AU40","v":"□"},"10年",null,{"$f":"'申込書（勤務先用）'!AX40","v":"□"},"15年",null,"）"]
[null,null,"積立額","俸　　　　　　給",null,null,null,null,null,null,null,{"$f":"'申込書（勤務先用）'!L41:M42","v":""},null,{"$f":"'申込書（勤務先用）'!N41:O42","v":""},null,{"$f":"'申込書（勤務先用）'!P41:Q42","v":""},null,{"$f":"'申込書（勤務先用）'!R41:S42","v":""},null,"千円",null,null,null,null,null,null,null,null,null,null,null,null,null,{"$f":"'申込書（勤務先用）'!AH41","v":"□"},"終身年金（10年保証期間付）",null,null,null,null,null,null,null,null,null,{"$f":"'申込書（勤務先用）'!AS41","v":"□"},"定額型"]
[null,null,null,null,null,null,null,null,null,null,null,null,null,null,null,null,null,null,null,null,null,null,null,null,null,null,null,null,null,null,null,null,null,null,null,null,null,null,null,null,null,null,null,null,{"$f":"'申込書（勤務先用）'!AS42","v":"□"},"逓増型"]
[null,null,null,"期末手当（６月期）",null,null,null,null,null,null,null,{"$f":"'申込書（勤務先用）'!L43:M44","v":""},null,{"$f":"'申込書（勤務先用）'!N43:O44","v":""},null,{"$f":"'申込書（勤務先用）'!P43:Q44","v":""},null,{"$f":"'申込書（勤務先用）'!R43:S44","v":""},null,"千円"]
[null,null,null,null,null,null,null,null,null,null,null,null,null,null,null,null,null,null,null,null,null,null,null,null,null,null,null,null,"支払回数",null,null,null,null,{"$f":"'申込書（勤務先用）'!AH44","v":"□"},"年1回",null,{"$f":"'申込書（勤務先用）'!AK44","v":"□"},"年4回",null,{"$f":"'申込書（勤務先用）'!AN44","v":"□"},"その他ー年",null,null,null,"（",{"$f":"'申込書（勤務先用）'!AT44:AU44","v":""},null,"）","回"]
[null,null,null,"期末手当（12月期）\n（ゆうちょ銀行の貯金及び損害\n保険の場合は６月期と同額）",null,null,null,null,null,null,null,{"$f":"'申込書（勤務先用）'!L45:M47","v":""},null,{"$f":"'申込書（勤務先用）'!N45:O47","v":""},null,{"$f":"'申込書（勤務先用）'!P45:Q47","v":""},null,{"$f":"'申込書（勤務先用）'!R45:S47","v":""},null,"千円",null,null,null,"年金振込口座及び\n年金支払額",null,null,null,null,"積立終了時までに取扱機関所定の方法で確定します。"]
[]
[null,null,null,null,null,null,null,null,null,null,null,null,null,null,null,null,null,null,null,null,null,null,null,null,null,null,null,null,null,null,null,null,null,null,null,null,null,null,null,null,null,null,null,null,null,"（注）年金貯蓄の申込みのみ記入"]
[null,null,"非課税最高限度額",null,null,null,null,null,null,null,"限",null,null,"百万",null,null,null,"千",null,null,"円",null,null,null,null,null,"住宅資金の不足額の支払方法",false,null,null,null,{"$f":"'申込書（勤務先用）'!AF48","v":"□"},"共済組合からの融資"]
[null,null,"（年金・住宅貯蓄の場合に記入）",null,null,null,null,null,null,null,null,null,{"$f":"'申込書（勤務先用）'!M49:O50","v":""},null,null,{"$f":"'申込書（勤務先用）'!P49:P50","v":""},{"$f":"'申込書（勤務先用）'!Q49:Q50","v":""},{"$f":"'申込書（勤務先用）'!R49:R50","v":""},{"$f":"'申込書（勤務先用）'!S49:S50","v":""},{"$f":"'申込書（勤務先用）'!T49:T50","v":""},{"$f":"'申込書（勤務先用）'!U49:U50","v":""},null,null,null,null,null,null,null,null,null,null,{"$f":"'申込書（勤務先用）'!AF49","v":"□"},"住宅金融支援機構又は沖縄振興開発金融公庫からの融資"]
[null,null,null,null,null,null,null,null,null,null,null,null,null,null,null,null,null,null,null,null,null,null,null,null,null,null,null,null,null,null,null,{"$f":"'申込書（勤務先用）'!AF50","v":"□"},"取扱機関が斡旋する金融機関からの融資"]
[null,null,null,"ゆうちょ銀行の一般財産形成貯蓄の場合は積立最高限度額を記入",null,null,null,null,null,null,null,null,null,null,null,null,null,null,null,null,null,null,null,null,null,null,null,null,null,null,null,null,null,null,null,null,null,null,null,null,null,null,"（注）住宅貯蓄の申込みのみ記入"]
[]
[null,null,null,null,null,null,null,null,"財産形成非課税",null,null,null,null,null,null,null,{"$f":"'申込書（勤務先用）'!Q53:V54","v":"年金・住宅"},null,null,null,null,null,"貯蓄申告書",null,null,null,null,null,"（加入者控）"]
[]
[null,null,null,null,null,null,null,"税　務　署　長　殿",null,null,null,null,null,null,null,null,null,null,null,null,null,null,null,null,null,null,null,null,null,{"$f":"'申込書（勤務先用）'!AD55:AI55","v":"　　年　　月　　日"}]
[null,"ふりがな",null,null,null,null,null,null,null,null,null,null,null,null,null,null,null,null,null,"個人番号"]
[null,"氏　　名"]
[]
[null,"住　　所",null,null,null,{"$f":"'申込書（勤務先用）'!F59:AI60","v":""}]
[]
[null,null,null,null,{"$f":"'申込書（勤務先用）'!E61:T61","v":"財産形成年金貯蓄につき租税特別措置法第４条の３第１項"}]
[null,"下記の",null,null,{"$f":"'申込書（勤務先用）'!E62:T62","v":"財産形成住宅貯蓄につき租税特別措置法第４条の２第１項"},null,null,null,null,null,null,null,null,null,null,null,null,null,null,null,null,"の規定の適用を受けたいので、この旨申告します。"]
[null,"区　分",null,null,null,"受入機関の営業所等",null,null,null,null,null,null,null,null,null,null,null,null,null,null,null,null,null,"最高限度額",null,null,null,null,null,null,"種　　別"]
[null,"非課税扱いの申告をする最高限度額",null,null,null,"所在地",null,null,{"$f":"'申込書（勤務先用）'!I64:W64","v":""},null,null,null,null,null,null,null,null,null,null,null,null,null,null,"百万",null,null,"千",null,null,"円",{"$f":"'申込書（勤務先用）'!AE64","v":"□"},"預　　貯　　金"]
[null,null,null,null,null,"名　称",null,null,{"$f":"'申込書（勤務先用）'!I65:W65","v":""},null,null,null,null,null,null,null,null,null,null,null,null,null,null,{"$f":"'申込書（勤務先用）'!X65:X66","v":""},{"$f":"'申込書（勤務先用）'!Y65:Y66","v":""},{"$f":"'申込書（勤務先用）'!Z65:Z66","v":""},{"$f":"'申込書（勤務先用）'!AA65:AA66","v":""},{"$f":"'申込書（勤務先用）'!AB65:AB66","v":""},{"$f":"'申込書（勤務先用）'!AC65:AC66","v":""},{"$f":"'申込書（勤務先用）'!AD65:AD66","v":""},{"$f":"'申込書（勤務先用）'!AE65","v":"□"},"合 同 運 用 信 託"]
[null,null,null,null,null,"法人番号",null,null,null,null,null,null,null,null,null,null,null,null,null,null,null,null,null,null,null,null,null,null,null,null,{"$f":"'申込書（勤務先用）'!AE66","v":"□"},"有　価　証　券"]
[null,"※既に非課税扱いの申告をしている最高限度額",null,null,null,"名　称",null,null,{"$f":"'申込書（勤務先用）'!I67:W68","v":""},null,null,null,null,null,null,null,null,null,null,null,null,null,null,{"$f":"'申込書（勤務先用）'!X67:X68","v":""},{"$f":"'申込書（勤務先用）'!Y67:Y68","v":""},{"$f":"'申込書（勤務先用）'!Z67:Z68","v":""},{"$f":"'申込書（勤務先用）'!AA67:AA68","v":""},{"$f":"'申込書（勤務先用）'!AB67:AB68","v":""},{"$f":"'申込書（勤務先用）'!AC67:AC68","v":""},{"$f":"'申込書（勤務先用）'!AD67:AD68","v":""},{"$f":"'申込書（勤務先用）'!AE67","v":"□"},"生命・損害保険の保険料"]
[]
[null,"勤　務　先",null,null,null,"所在地",null,null,{"$f":"'申込書（金融機関等用）'!I69:AD69","v":""}]
[null,null,null,null,null,"名　称",null,null,{"$f":"'申込書（金融機関等用）'!I70:AD70","v":""}]
[null,"賃金の支払者",null,null,null,"所在地",null,null,{"$f":"'申込書（金融機関等用）'!I71:AD71","v":""}]
[null,null,null,null,null,"名　称",null,null,{"$f":"'申込書（勤務先用）'!I72:S72","v":""},null,null,null,null,null,null,null,null,null,null,"法人番号",null,null,{"$f":"'申込書（勤務先用）'!W72:AD72","v":""}]
[null,"事務代行先",null,null,null,"所在地"]
[null,null,null,null,null,"名　称",null,null,null,null,null,null,null,null,null,null,null,null,null,"法人番号"]
[null,"※欄に記載した事項は、勤務先の長により事実に相違ないことを確認しました。"]
[null,null,null,"令和　　　年　　　月　　　日"]

{"sheet":"リスト","index":4,"n_rows":79,"n_cols":9,"rows_kept":79,"cut":false,"hidden":true,"merged":[]}
["勤務先","所在地","法人番号","貯蓄の種類",null,null,null,null,"取扱金融機関等"]
["最高裁判所","東京都千代田区隼町４－２",3000013000001,"期日指定定期預金（反復預入）","（租規第３条の11第１項第１号）","（兼 財産形成非課税年金 貯蓄申込書）","財産形成年金貯蓄につき租特法第４条の３第１項","財産形成年金貯蓄につき租税特別措置法第４条の３第１項","りそな銀行（旧あさひ）"]
["東京高等裁判所","東京都千代田区霞が関１－１－４",2000013010001,"定額貯金","（租規第３条の11第１項第２号）","（兼 財産形成非課税住宅 貯蓄申込書）","財産形成住宅貯蓄につき租特法第４条の２第１項","財産形成住宅貯蓄につき租税特別措置法第４条の２第１項","みずほ銀行（旧第一勧業）"]
["東京地方裁判所","東京都千代田区霞が関１－１－４",9000013030001,"自動継続定期預金","（租規第３条の11第１項第４号）",null,null,null,"みずほ銀行（旧富士）"]
["東京家庭裁判所","東京都千代田区霞が関１－１－２",8000013040001,"積立定期預金","（租規第３条の11第１項第５号）",null,null,null,"三菱ＵＦＪ銀行"]
["横浜地方裁判所","神奈川県横浜市中区日本大通９",8000013030002,"金銭信託","（租規第３条の11第１項第６号）",null,null,null,"三井住友銀行"]
["横浜家庭裁判所","神奈川県横浜市中区寿町１－２",7000013040002,"金銭信託プラス貸付信託","（租規第３条の11第１項第８号）",null,null,null,"みずほ信託銀行"]
["さいたま地方裁判所","埼玉県さいたま市浦和区高砂３－１６－４５",7000013030003,"利付金融債","（租規第３条の11第１項第９号）",null,null,null,"三菱ＵＦＪ信託銀行"]
["さいたま家庭裁判所","埼玉県さいたま市浦和区高砂３－１６－４５",6000013040003,"利付金融債（利子一括払）","（租規第３条の２第２号）",null,null,null,"三井住友信託銀行（旧住友）"]
["千葉地方裁判所","千葉県千葉市中央区中央４－１１－２７",6000013030004,"公社債投資信託","（租規第３条の２第４号）",null,null,null,"三井住友信託銀行（旧中央三井）"]
["千葉家庭裁判所","千葉県千葉市中央区中央４－１１－２７",5000013040004,"株式投資信託（50）","（租規第３条の２第５号）",null,null,null,"りそな銀行（旧大和）"]
["水戸地方裁判所","茨城県水戸市大町１－１－３８",5000013030005,"株式投資信託（30）","（租規第３条の２第６号）",null,null,null,"みずほ銀行（旧日本勧業）"]
["宇都宮地方裁判所","栃木県宇都宮市小幡１－１－３８",4000013030006,"国債プラス社債","（租規第３条の２第７号）",null,null,null,"新生銀行"]
["宇都宮家庭裁判所","栃木県宇都宮市小幡１－１－３８",3000013040006,"国債","（租規第３条の２第８号）",null,null,null,"野村證券株式会社"]
["前橋地方裁判所","群馬県前橋市大手町３－１－３４",3000013030007,"生命保険","（租規第３条の２第９号）",null,null,null,"大和証券株式会社"]
["静岡地方裁判所","静岡県静岡市葵区追手町１０－８０",2000013030008,"損害保険",null,null,null,null,"ＳＭＢＣ日興証券株式会社"]
["静岡家庭裁判所","静岡県静岡市葵区城内町１－２０",1000013040008,null,null,null,null,null,"みずほ証券株式会社"]
["甲府地方裁判所","山梨県甲府市中央１－１０－７",1000013030009,null,null,null,null,null,"第一生命保険株式会社"]
["長野地方裁判所","長野県長野市旭町１１０８",8000013030010,null,null,null,null,null,"岩井コスモ証券株式会社"]
["新潟地方裁判所","新潟県新潟市中央区学校町通１－１",7000013030011,null,null,null,null,null,"朝日生命保険相互会社"]
["新潟家庭裁判所","新潟県新潟市中央区川岸町１－５４－１",6000013040011,null,null,null,null,null,"富国生命保険相互会社"]
["大阪高等裁判所","大阪府大阪市北区西天満２－１－１０",1000013010002,null,null,null,null,null,"北海道労働金庫"]
["大阪地方裁判所","大阪府大阪市北区西天満２－１－１０",6000013030012,null,null,null,null,null,"東北労働金庫"]
["大阪家庭裁判所","大阪府大阪市中央区大手前４－１－１３",5000013040012,null,null,null,null,null,"中央労働金庫"]
["京都地方裁判所","京都府京都市中京区菊屋町",5000013030013,null,null,null,null,null,"新潟県労働金庫"]
["京都家庭裁判所","京都府京都市左京区下鴨宮河町１",4000013040013,null,null,null,null,null,"長野県労働金庫"]
["神戸地方裁判所","兵庫県神戸市中央区橘通２－２－１",4000013030014,null,null,null,null,null,"静岡県労働金庫"]
["神戸家庭裁判所","兵庫県神戸市兵庫区荒田町３－４６－１",3000013040014,null,null,null,null,null,"北陸労働金庫"]
["奈良地方裁判所","奈良県奈良市登大路町３５",3000013030015,null,null,null,null,null,"東海労働金庫"]
["大津地方裁判所","滋賀県大津市京町３－１－２",2000013030016,null,null,null,null,null,"近畿労働金庫"]
["和歌山地方裁判所","和歌山県和歌山市二番丁１",1000013030017,null,null,null,null,null,"中国労働金庫"]
["名古屋高等裁判所","愛知県名古屋市中区三の丸１－４－１",9000013010003,null,null,null,null,null,"四国労働金庫"]
["名古屋地方裁判所","愛知県名古屋市中区三の丸１－４－１",9000013030018,null,null,null,null,null,"九州労働金庫"]
["名古屋家庭裁判所","愛知県名古屋市中区三の丸１－７－１",8000013040018,null,null,null,null,null,"沖縄県労働金庫"]
["津地方裁判所","三重県津市中央３－１",8000013030019]
["岐阜地方裁判所","岐阜県岐阜市美江寺町２－４－１",6000013030020]
["福井地方裁判所","福井県福井市春山１－１－１",5000013030021]
["金沢地方裁判所","石川県金沢市丸の内７－１",4000013030022]
["富山地方裁判所","富山県富山市西田地方町２－９－１",3000013030023]
["広島高等裁判所","広島県広島市中区上八丁堀２－４３",8000013010004]
["広島地方裁判所","広島県広島市中区上八丁堀２－４３",2000013030024]
["広島家庭裁判所","広島県広島市中区上八丁堀１－６",1000013040024]
["山口地方裁判所","山口県山口市駅通り１－６－１",1000013030025]
["岡山地方裁判所","岡山県岡山市北区南方１－８－４２",9000013030026]
["鳥取地方裁判所","鳥取県鳥取市東町２－２２３",8000013030027]
["松江地方裁判所","島根県松江市母衣町６８",7000013030028]
["福岡高等裁判所","福岡県福岡市中央区六本松４－２－４",7000013010005]
["福岡地方裁判所","福岡県福岡市中央区六本松４－２－４",6000013030029]
["佐賀地方裁判所","佐賀県佐賀市中の小路３－２２",4000013030030]
["長崎地方裁判所","長崎県長崎市万才町９－２６",3000013030031]
["長崎家庭裁判所","長崎県長崎市万才町６－２５",2000013040031]
["大分地方裁判所","大分県大分市荷揚町７－１５",2000013030032]
["熊本地方裁判所","熊本県熊本市中央区京町１－１３－１１",1000013030033]
["熊本家庭裁判所","熊本県熊本市中央区千葉城町３－３１",9000013040033]
["鹿児島地方裁判所","鹿児島県鹿児島市山下町１３－４７",9000013030034]
["宮崎地方裁判所","宮崎県宮崎市旭２－３－１３",8000013030035]
["那覇地方裁判所","沖縄県那覇市樋川１－１４－１",7000013030036]
["仙台高等裁判所","宮城県仙台市青葉区片平１－６－１",6000013010006]
["仙台地方裁判所","宮城県仙台市青葉区片平１－６－１",6000013030037]
["仙台家庭裁判所","宮城県仙台市青葉区片平１－６－１",5000013040037]
["福島地方裁判所","福島県福島市花園町５－３８",5000013030038]
["福島家庭裁判所","福島県福島市花園町５－３８",4000013040038]
["山形地方裁判所","山形県山形市旅篭町２－４－２２",4000013030039]
["盛岡地方裁判所","岩手県盛岡市内丸９－１",2000013030040]
["秋田地方裁判所","秋田県秋田市山王７－１－１",1000013030041]
["青森地方裁判所","青森県青森市長島１－３－２６",9000013030042]
["札幌高等裁判所","北海道札幌市中央区大通西１１",5000013010007]
["札幌地方裁判所","北海道札幌市中央区大通西１１",8000013030043]
["札幌家庭裁判所","北海道札幌市中央区大通西１２",7000013040043]
["函館地方裁判所","北海道函館市上新川町１－８",7000013030044]
["旭川地方裁判所","北海道旭川市花咲町４",6000013030045]
["釧路地方裁判所","北海道釧路市柏木町４－７",5000013030046]
["高松高等裁判所","香川県高松市丸の内１－３６",4000013010008]
["高松地方裁判所","香川県高松市丸の内１－３６",4000013030047]
["高松家庭裁判所","香川県高松市丸の内２－２７",3000013040047]
["徳島地方裁判所","徳島県徳島市徳島町１－５－１",3000013030048]
["高知地方裁判所","高知県高知市丸ノ内１－３－５",2000013030049]
["松山地方裁判所","愛媛県松山市一番町３－３－８",9000013030050]
["松山家庭裁判所","愛媛県松山市南堀端町２－１",8000013040050]